[Event "Live Chess"]
[Site "Chess.com"]
[Date "2023.05.21"]
[Round "-"]
[White "McSlash1"]
[Black "Dhaydon19"]
[Result "0-1"]
[WhiteElo "1973"]
[BlackElo "2689"]
[TimeControl "300"]
[EndTime "8:26:46 PDT"]
[Termination "Dhaydon19 won by resignation"]

1. e4 {[%clk 0:04:59.3]} 1... c6 {[%clk 0:04:58.6]} 2. d4 {[%clk 0:04:58.5]}
2... d5 {[%clk 0:04:58.5]} 3. Nc3 {[%clk 0:04:58]} 3... dxe4 {[%clk 0:04:57.7]}
4. Nxe4 {[%clk 0:04:57.9]} 4... Nf6 {[%clk 0:04:55.4]} 5. Nxf6+ {[%clk
0:04:57.2]} 5... exf6 {[%clk 0:04:54.8]} 6. Nf3 {[%clk 0:04:56.9]} 6... Bd6
{[%clk 0:04:54.4]} 7. Bd3 {[%clk 0:04:56.1]} 7... O-O {[%clk 0:04:54]} 8. O-O
{[%clk 0:04:55.6]} 8... Bg4 {[%clk 0:04:53.1]} 9. Re1 {[%clk 0:04:54.3]} 9...
Bc7 {[%clk 0:04:51.9]} 10. h3 {[%clk 0:04:53.2]} 10... Bh5 {[%clk 0:04:50.8]}
11. c3 {[%clk 0:04:52.5]} 11... Qd6 {[%clk 0:04:49.5]} 12. g3 {[%clk 0:04:43.8]}
12... Qd7 {[%clk 0:04:43.9]} 13. Kh2 {[%clk 0:04:39.4]} 13... Na6 {[%clk
0:04:39.4]} 14. Be2 {[%clk 0:04:37.6]} 14... Rae8 {[%clk 0:04:36.9]} 15. Nh4
{[%clk 0:04:30.9]} 15... Bxe2 {[%clk 0:04:32.7]} 16. Rxe2 {[%clk 0:04:30.8]}
16... Qd5 {[%clk 0:04:28.5]} 17. Be3 {[%clk 0:04:21.3]} 17... Qh5 {[%clk
0:04:26.5]} 18. Rd2 {[%clk 0:04:15.9]} 18... Qxh4 {[%clk 0:04:24.6]} 19. f4
{[%clk 0:04:08]} 19... Qxg3+ {[%clk 0:04:12.6]} 0-1

[Event "Live Chess"]
[Site "Chess.com"]
[Date "2023.05.21"]
[Round "-"]
[White "Hussamalhaidar"]
[Black "siddu198"]
[Result "0-1"]
[WhiteElo "1168"]
[BlackElo "1617"]
[TimeControl "300"]
[EndTime "8:26:49 PDT"]
[Termination "siddu198 won by resignation"]

1. b3 {[%clk 0:04:56.3]} 1... g6 {[%clk 0:04:59.9]} 2. Bb2 {[%clk 0:04:54.7]}
2... f6 {[%clk 0:04:59.4]} 3. g4 {[%clk 0:04:51.7]} 3... e5 {[%clk 0:04:59.3]}
4. g5 {[%clk 0:04:48.9]} 4... d6 {[%clk 0:04:57]} 5. f4 {[%clk 0:04:44.5]} 5...
exf4 {[%clk 0:04:51.4]} 6. Bxf6 {[%clk 0:04:39.9]} 6... Nxf6 {[%clk 0:04:50.1]}
7. gxf6 {[%clk 0:04:32.6]} 7... Qxf6 {[%clk 0:04:49.1]} 8. Nc3 {[%clk
0:04:30.3]} 8... Bg7 {[%clk 0:04:48]} 9. Nf3 {[%clk 0:04:24.9]} 9... Bg4 {[%clk
0:04:46.6]} 10. e3 {[%clk 0:04:06.4]} 10... fxe3 {[%clk 0:04:15]} 11. Bg2 {[%clk
0:03:42.6]} 11... exd2+ {[%clk 0:04:09.6]} 12. Qxd2 {[%clk 0:03:30.5]} 12...
Bxf3 {[%clk 0:04:08.4]} 13. Qe3+ {[%clk 0:03:25.5]} 13... Qe5 {[%clk 0:04:03.9]}
14. Qxe5+ {[%clk 0:03:20.4]} 14... Bxe5 {[%clk 0:04:03.5]} 15. Bxf3 {[%clk
0:03:11.1]} 15... Bxc3+ {[%clk 0:04:01.4]} 16. Kf2 {[%clk 0:03:05.2]} 16... Bxa1
{[%clk 0:03:57.3]} 0-1

[Event "Live Chess"]
[Site "Chess.com"]
[Date "2023.05.21"]
[Round "-"]
[White "LiamBellwood"]
[Black "ossie57"]
[Result "1-0"]
[WhiteElo "1929"]
[BlackElo "1840"]
[TimeControl "300"]
[EndTime "8:27:03 PDT"]
[Termination "LiamBellwood won by resignation"]

1. d4 {[%clk 0:04:59.4]} 1... d5 {[%clk 0:04:59.1]} 2. Nc3 {[%clk 0:04:59.1]}
2... Nf6 {[%clk 0:04:56.9]} 3. Bf4 {[%clk 0:04:58.7]} 3... e6 {[%clk 0:04:55.8]}
4. Nb5 {[%clk 0:04:57]} 4... Na6 {[%clk 0:04:54.3]} 5. a3 {[%clk 0:04:54.7]}
5... c6 {[%clk 0:04:46.2]} 6. Nc3 {[%clk 0:04:54.1]} 6... Bd6 {[%clk 0:04:45.4]}
7. e3 {[%clk 0:04:53.6]} 7... Bxf4 {[%clk 0:04:44.3]} 8. exf4 {[%clk 0:04:53.5]}
8... Qd6 {[%clk 0:04:43.2]} 9. Qd2 {[%clk 0:04:52.4]} 9... c5 {[%clk 0:04:40.3]}
10. Bxa6 {[%clk 0:04:50.9]} 10... bxa6 {[%clk 0:04:39.7]} 11. dxc5 {[%clk
0:04:48.6]} 11... Qxc5 {[%clk 0:04:38.2]} 12. Nf3 {[%clk 0:04:48.5]} 12... a5
{[%clk 0:04:31.8]} 13. O-O {[%clk 0:04:46.6]} 13... Ba6 {[%clk 0:04:30.8]} 14.
Rfe1 {[%clk 0:04:45.7]} 14... O-O {[%clk 0:04:30.3]} 15. Qd4 {[%clk 0:04:40.1]}
15... Rac8 {[%clk 0:04:22.9]} 16. Rad1 {[%clk 0:04:31.9]} 16... Qb6 {[%clk
0:04:17.4]} 17. Qxb6 {[%clk 0:04:10.3]} 17... axb6 {[%clk 0:04:17.3]} 18. a4
{[%clk 0:04:10.2]} 18... Rc4 {[%clk 0:03:50.4]} 19. g3 {[%clk 0:04:07.7]} 19...
Rfc8 {[%clk 0:03:48.6]} 20. Ne5 {[%clk 0:04:05.1]} 20... R4c7 {[%clk 0:03:45.3]}
21. Rd2 {[%clk 0:03:47.9]} 21... Nd7 {[%clk 0:03:37.2]} 22. Nxd7 {[%clk
0:03:38.5]} 22... Rxd7 {[%clk 0:03:37.1]} 23. f5 {[%clk 0:03:35.6]} 23... exf5
{[%clk 0:03:20.6]} 24. Nxd5 {[%clk 0:03:33.4]} 24... Rcd8 {[%clk 0:02:59]} 25.
Ne7+ {[%clk 0:03:17.6]} 25... Kf8 {[%clk 0:02:56.9]} 26. Rxd7 {[%clk 0:03:14]}
26... Rxd7 {[%clk 0:02:56.8]} 27. Nc6 {[%clk 0:03:04.1]} 27... Bb7 {[%clk
0:02:49.6]} 28. Ne5 {[%clk 0:02:55.9]} 28... Re7 {[%clk 0:02:43.7]} 29. Kf1
{[%clk 0:02:40.2]} 29... f6 {[%clk 0:02:37.1]} 30. Nd3 {[%clk 0:02:37.5]} 30...
Be4 {[%clk 0:02:30.1]} 31. Re3 {[%clk 0:02:14.1]} 31... Rc7 {[%clk 0:02:26.4]}
32. c3 {[%clk 0:02:09.3]} 32... Rc4 {[%clk 0:02:20.1]} 33. Ke2 {[%clk
0:02:04.7]} 33... Rxa4 {[%clk 0:02:16.3]} 34. f3 {[%clk 0:01:58.3]} 34... Bxd3+
{[%clk 0:02:08.9]} 35. Kxd3 {[%clk 0:01:58.2]} 35... Ra1 {[%clk 0:01:59.4]} 36.
Re6 {[%clk 0:01:54.6]} 36... b5 {[%clk 0:01:56]} 37. Rb6 {[%clk 0:01:52.4]}
37... b4 {[%clk 0:01:44.6]} 38. cxb4 {[%clk 0:01:51.4]} 38... axb4 {[%clk
0:01:44]} 39. Rxb4 {[%clk 0:01:51.3]} 39... Rh1 {[%clk 0:01:41.5]} 40. Rb7
{[%clk 0:01:26.2]} 40... Rxh2 {[%clk 0:01:39.5]} 41. b4 {[%clk 0:01:21.1]} 41...
Rh3 {[%clk 0:01:35.7]} 42. Ke3 {[%clk 0:01:20.2]} 42... Rxg3 {[%clk 0:01:34.8]}
43. Kf4 {[%clk 0:01:19.2]} 43... Rg1 {[%clk 0:01:31.9]} 44. Kxf5 {[%clk
0:01:16.6]} 44... Rf1 {[%clk 0:01:27.4]} 45. Kf4 {[%clk 0:01:15.7]} 45... Rc1
{[%clk 0:01:16.6]} 46. b5 {[%clk 0:01:13.8]} 46... Rc5 {[%clk 0:01:15.4]} 47.
Kg3 {[%clk 0:01:13.4]} 47... g5 {[%clk 0:01:14.2]} 48. b6 {[%clk 0:01:11.4]}
48... h5 {[%clk 0:01:13.3]} 49. Rc7 {[%clk 0:01:00.2]} 49... h4+ {[%clk
0:00:45.9]} 50. Kh3 {[%clk 0:00:58.6]} 50... Rb5 {[%clk 0:00:24.7]} 51. b7
{[%clk 0:00:56.8]} 1-0

[Event "Live Chess"]
[Site "Chess.com"]
[Date "2023.05.21"]
[Round "-"]
[White "LordBenin"]
[Black "Tema1107"]
[Result "0-1"]
[WhiteElo "1401"]
[BlackElo "1944"]
[TimeControl "300"]
[EndTime "8:27:10 PDT"]
[Termination "Tema1107 won by resignation"]

1. e4 {[%clk 0:04:58]} 1... c5 {[%clk 0:04:52.6]} 2. Nc3 {[%clk 0:04:53.6]} 2...
Nc6 {[%clk 0:04:45.6]} 3. Bc4 {[%clk 0:04:51.8]} 3... e6 {[%clk 0:04:44.4]} 4.
d3 {[%clk 0:04:50.4]} 4... Nf6 {[%clk 0:04:42.1]} 5. Bg5 {[%clk 0:04:48.3]} 5...
Be7 {[%clk 0:04:38.9]} 6. Nf3 {[%clk 0:04:45]} 6... h6 {[%clk 0:04:37.3]} 7. Bh4
{[%clk 0:04:43.2]} 7... a6 {[%clk 0:04:35]} 8. a4 {[%clk 0:04:40.2]} 8... O-O
{[%clk 0:04:33.3]} 9. O-O {[%clk 0:04:38.4]} 9... Ne8 {[%clk 0:04:31.5]} 10.
Bxe7 {[%clk 0:04:35.9]} 10... Qxe7 {[%clk 0:04:31.4]} 11. h3 {[%clk 0:04:25.6]}
11... Nc7 {[%clk 0:04:27.7]} 12. Nh2 {[%clk 0:04:15.1]} 12... Rd8 {[%clk
0:04:25.7]} 13. f4 {[%clk 0:04:13]} 13... d5 {[%clk 0:04:19.6]} 14. exd5 {[%clk
0:04:10.1]} 14... exd5 {[%clk 0:04:19.5]} 15. Bb3 {[%clk 0:03:58.5]} 15... Bf5
{[%clk 0:04:11.2]} 16. Qf3 {[%clk 0:03:53.6]} 16... Nd4 {[%clk 0:04:08.1]} 17.
Qh5 {[%clk 0:03:42.7]} 17... Bg6 {[%clk 0:04:02.5]} 18. Qd1 {[%clk 0:03:31.2]}
18... Nxb3 {[%clk 0:03:52.6]} 19. cxb3 {[%clk 0:03:28.9]} 19... Qe3+ {[%clk
0:03:52.2]} 20. Kh1 {[%clk 0:03:24]} 20... Qxd3 {[%clk 0:03:49.1]} 21. f5 {[%clk
0:03:06.8]} 21... Bxf5 {[%clk 0:03:38.1]} 22. Qe1 {[%clk 0:02:40.8]} 22... Bg6
{[%clk 0:03:32.5]} 23. Rd1 {[%clk 0:02:38.4]} 23... Qc2 {[%clk 0:03:29.8]} 24.
Rd2 {[%clk 0:02:22.4]} 24... Qxb3 {[%clk 0:03:14]} 25. Ng4 {[%clk 0:02:04.9]}
25... Re8 {[%clk 0:03:07.7]} 26. Qf2 {[%clk 0:01:59.5]} 26... d4 {[%clk
0:03:03.3]} 27. Nb1 {[%clk 0:01:42]} 27... Nd5 {[%clk 0:02:59.3]} 28. a5 {[%clk
0:01:13.6]} 28... Ne3 {[%clk 0:02:17.4]} 29. Re1 {[%clk 0:01:04.1]} 29... Nxg4
{[%clk 0:02:12.9]} 30. hxg4 {[%clk 0:00:57.6]} 30... Rxe1+ {[%clk 0:02:10.9]}
31. Qxe1 {[%clk 0:00:56.5]} 31... Qe3 {[%clk 0:02:10.8]} 32. Re2 {[%clk
0:00:51.9]} 32... Qg5 {[%clk 0:02:00.5]} 33. Nd2 {[%clk 0:00:32.9]} 33... Qxg4
{[%clk 0:01:47.8]} 34. Nc4 {[%clk 0:00:22.4]} 34... d3 {[%clk 0:01:42.9]} 35.
Rd2 {[%clk 0:00:15.2]} 35... Qxc4 {[%clk 0:01:39.5]} 0-1

[Event "Live Chess"]
[Site "Chess.com"]
[Date "2023.05.21"]
[Round "-"]
[White "CheckThis4"]
[Black "Singapourfeuj"]
[Result "0-1"]
[WhiteElo "2517"]
[BlackElo "2196"]
[TimeControl "300"]
[EndTime "8:27:25 PDT"]
[Termination "Singapourfeuj won by resignation"]

1. d4 {[%clk 0:04:58.3]} 1... Nf6 {[%clk 0:04:58.1]} 2. Nc3 {[%clk 0:04:57.3]}
2... d5 {[%clk 0:04:55.5]} 3. e4 {[%clk 0:04:56.5]} 3... e6 {[%clk 0:04:54.2]}
4. Bg5 {[%clk 0:04:54.3]} 4... Be7 {[%clk 0:04:52.2]} 5. e5 {[%clk 0:04:53.7]}
5... Nfd7 {[%clk 0:04:51.1]} 6. Bxe7 {[%clk 0:04:52.6]} 6... Qxe7 {[%clk
0:04:49.6]} 7. f4 {[%clk 0:04:52.3]} 7... a6 {[%clk 0:04:48.5]} 8. Nf3 {[%clk
0:04:51.6]} 8... c5 {[%clk 0:04:47.6]} 9. Bd3 {[%clk 0:04:47]} 9... Nc6 {[%clk
0:04:46.3]} 10. O-O {[%clk 0:04:43]} 10... b5 {[%clk 0:04:45.2]} 11. dxc5 {[%clk
0:04:03.7]} 11... Qxc5+ {[%clk 0:04:43.2]} 12. Kh1 {[%clk 0:04:02.3]} 12... Bb7
{[%clk 0:04:41.4]} 13. a4 {[%clk 0:03:58.6]} 13... b4 {[%clk 0:04:39.2]} 14. Ne2
{[%clk 0:03:57.7]} 14... f5 {[%clk 0:04:33.9]} 15. exf6 {[%clk 0:03:55.6]} 15...
Nxf6 {[%clk 0:04:31.7]} 16. Ng5 {[%clk 0:03:52.3]} 16... Kd7 {[%clk 0:04:25.3]}
17. Ng3 {[%clk 0:03:46.9]} 17... h5 {[%clk 0:04:22.6]} 18. Nf7 {[%clk
0:03:45.2]} 18... h4 {[%clk 0:04:19]} 19. Ne2 {[%clk 0:03:36]} 19... Rh5 {[%clk
0:04:09.4]} 20. c4 {[%clk 0:03:29.7]} 20... Kc7 {[%clk 0:04:01.6]} 21. cxd5
{[%clk 0:03:27.9]} 21... Qxd5 {[%clk 0:03:55.3]} 22. Rc1 {[%clk 0:03:19.8]}
22... h3 {[%clk 0:03:54.2]} 23. Rf2 {[%clk 0:03:13.5]} 23... Ng4 {[%clk
0:03:51.7]} 24. Rf3 {[%clk 0:03:07.5]} 24... hxg2+ {[%clk 0:03:49]} 25. Kxg2
{[%clk 0:03:03.9]} 25... Rxh2+ {[%clk 0:03:41.5]} 26. Kg3 {[%clk 0:03:01.6]}
26... Rh3+ {[%clk 0:03:40.2]} 27. Kxh3 {[%clk 0:02:53.6]} 27... Qxf3+ {[%clk
0:03:39.1]} 28. Kh4 {[%clk 0:02:53.1]} 28... Nf2 {[%clk 0:03:15.9]} 29. Qg1
{[%clk 0:02:28.2]} 29... Qh3+ {[%clk 0:03:08.7]} 30. Kg5 {[%clk 0:02:25.7]}
30... Nxd3 {[%clk 0:03:06.9]} 31. Nd4 {[%clk 0:02:19]} 31... Rf8 {[%clk
0:02:42.7]} 32. Nxc6 {[%clk 0:02:06.1]} 32... Qf5+ {[%clk 0:02:40.2]} 33. Kh4
{[%clk 0:02:04.7]} 33... Qxf4+ {[%clk 0:02:33.9]} 34. Kh3 {[%clk 0:01:59.3]}
34... Nxc1 {[%clk 0:02:26.3]} 35. Nce5 {[%clk 0:01:51.8]} 35... Qf5+ {[%clk
0:02:13.7]} 36. Kh4 {[%clk 0:01:37.1]} 36... Qe4+ {[%clk 0:01:58.1]} 37. Kg5
{[%clk 0:01:28.7]} 37... Qg2+ {[%clk 0:01:56.6]} 0-1

[Event "Live Chess"]
[Site "Chess.com"]
[Date "2023.05.21"]
[Round "-"]
[White "lateforthesky"]
[Black "wadsy27"]
[Result "1-0"]
[WhiteElo "2093"]
[BlackElo "2532"]
[TimeControl "300"]
[EndTime "8:27:28 PDT"]
[Termination "lateforthesky won by resignation"]

1. e4 {[%clk 0:04:58.9]} 1... e6 {[%clk 0:04:58.3]} 2. d4 {[%clk 0:04:57.1]}
2... d5 {[%clk 0:04:56.7]} 3. e5 {[%clk 0:04:56.2]} 3... c5 {[%clk 0:04:55.6]}
4. c3 {[%clk 0:04:55.7]} 4... Nc6 {[%clk 0:04:54.9]} 5. Nf3 {[%clk 0:04:55.3]}
5... Qb6 {[%clk 0:04:54.3]} 6. Bd3 {[%clk 0:04:54]} 6... cxd4 {[%clk 0:04:53.5]}
7. O-O {[%clk 0:04:52.6]} 7... Bd7 {[%clk 0:04:53.1]} 8. Re1 {[%clk 0:04:50.6]}
8... Nge7 {[%clk 0:04:52.4]} 9. h4 {[%clk 0:04:44.2]} 9... h6 {[%clk 0:04:51.5]}
10. h5 {[%clk 0:04:41.8]} 10... Rc8 {[%clk 0:04:50.7]} 11. Na3 {[%clk
0:04:39.3]} 11... a6 {[%clk 0:04:47.1]} 12. Nc2 {[%clk 0:04:37.8]} 12... dxc3
{[%clk 0:04:42.8]} 13. bxc3 {[%clk 0:04:37]} 13... Na5 {[%clk 0:04:41.8]} 14.
Ncd4 {[%clk 0:04:31.9]} 14... Nec6 {[%clk 0:04:38]} 15. Rb1 {[%clk 0:04:29.3]}
15... Qc7 {[%clk 0:04:37]} 16. Nb3 {[%clk 0:04:15.6]} 16... Be7 {[%clk
0:04:23.2]} 17. Be3 {[%clk 0:03:57.7]} 17... b5 {[%clk 0:04:21.1]} 18. Nc5
{[%clk 0:03:50.3]} 18... Bxc5 {[%clk 0:03:30.4]} 19. Bxc5 {[%clk 0:03:48.7]}
19... Nxe5 {[%clk 0:03:27.6]} 20. Bb4 {[%clk 0:03:18.4]} 20... Nxd3 {[%clk
0:03:12.3]} 21. Qxd3 {[%clk 0:03:12.9]} 21... Nc6 {[%clk 0:03:11.2]} 22. Ba3
{[%clk 0:03:07.1]} 22... Qa5 {[%clk 0:02:45.7]} 23. Bd6 {[%clk 0:03:02.4]} 23...
Qxa2 {[%clk 0:02:30.9]} 24. Ra1 {[%clk 0:02:45]} 24... Qc4 {[%clk 0:02:29.2]}
25. Qxc4 {[%clk 0:02:44.2]} 25... bxc4 {[%clk 0:02:23.6]} 26. Rxa6 {[%clk
0:02:42.6]} 26... g6 {[%clk 0:02:00.3]} 27. hxg6 {[%clk 0:02:08.8]} 27... fxg6
{[%clk 0:02:00.2]} 28. Rb1 {[%clk 0:02:06]} 28... Rh7 {[%clk 0:01:49.3]} 29. Rb7
{[%clk 0:02:01.7]} 29... Nd8 {[%clk 0:01:46.2]} 30. Rba7 {[%clk 0:01:58.2]}
30... Rc6 {[%clk 0:01:33.6]} 31. Ne5 {[%clk 0:01:50.2]} 31... Rxa6 {[%clk
0:01:25.4]} 32. Rxa6 {[%clk 0:01:50.1]} 32... Bc8 {[%clk 0:00:50]} 33. Ra8
{[%clk 0:01:34]} 33... Bb7 {[%clk 0:00:48.5]} 34. Ra7 {[%clk 0:01:21.1]} 34...
g5 {[%clk 0:00:38.3]} 35. Kf1 {[%clk 0:01:08.5]} 35... h5 {[%clk 0:00:28.4]} 36.
Ke2 {[%clk 0:01:07.3]} 36... h4 {[%clk 0:00:26.9]} 37. Ke3 {[%clk 0:01:06.5]}
37... g4 {[%clk 0:00:21.5]} 38. Nxg4 {[%clk 0:01:00.1]} 38... Rg7 {[%clk
0:00:15.2]} 39. f3 {[%clk 0:00:58.1]} 39... Kd7 {[%clk 0:00:12.5]} 40. Be5
{[%clk 0:00:55.4]} 40... Kc8 {[%clk 0:00:10.5]} 41. Bxg7 {[%clk 0:00:52.9]}
41... Nc6 {[%clk 0:00:09.2]} 1-0

[Event "Live Chess"]
[Site "Chess.com"]
[Date "2023.05.21"]
[Round "-"]
[White "martinsmartin63"]
[Black "BJAW87"]
[Result "0-1"]
[WhiteElo "767"]
[BlackElo "1442"]
[TimeControl "300"]
[EndTime "8:27:41 PDT"]
[Termination "BJAW87 won by resignation"]

1. d4 {[%clk 0:04:58.3]} 1... Nf6 {[%clk 0:04:59.1]} 2. Nf3 {[%clk 0:04:52.6]}
2... g6 {[%clk 0:04:58.2]} 3. Nc3 {[%clk 0:04:45.5]} 3... Bg7 {[%clk 0:04:57.2]}
4. e4 {[%clk 0:04:44]} 4... O-O {[%clk 0:04:55.6]} 5. e5 {[%clk 0:04:41.6]} 5...
Ne8 {[%clk 0:04:54.4]} 6. Bd2 {[%clk 0:04:34.7]} 6... f6 {[%clk 0:04:53.3]} 7.
Qc1 {[%clk 0:04:32.3]} 7... fxe5 {[%clk 0:04:49.9]} 8. dxe5 {[%clk 0:04:28.7]}
8... d6 {[%clk 0:04:46]} 9. Bh6 {[%clk 0:04:24.6]} 9... Bg4 {[%clk 0:04:22.4]}
10. Bxg7 {[%clk 0:04:21.1]} 10... Nxg7 {[%clk 0:04:16]} 11. exd6 {[%clk
0:04:12]} 11... exd6 {[%clk 0:04:14.1]} 12. Be2 {[%clk 0:04:04.3]} 12... Qe7
{[%clk 0:04:10.7]} 13. Kf1 {[%clk 0:04:01.8]} 13... Nc6 {[%clk 0:03:58]} 14. Qg5
{[%clk 0:03:51.4]} 14... Qxg5 {[%clk 0:03:43.4]} 15. Nxg5 {[%clk 0:03:47.4]}
15... Bxe2+ {[%clk 0:03:42.2]} 16. Nxe2 {[%clk 0:03:41.6]} 16... Rf5 {[%clk
0:03:14.3]} 17. Nf3 {[%clk 0:03:37.7]} 17... Ne5 {[%clk 0:03:04.5]} 18. Nxe5
{[%clk 0:03:34.4]} 18... Rxe5 {[%clk 0:03:04.4]} 19. Re1 {[%clk 0:03:29.2]}
19... Rae8 {[%clk 0:03:00.2]} 20. Kg1 {[%clk 0:03:18.1]} 20... Rxe2 {[%clk
0:02:58.6]} 21. Rxe2 {[%clk 0:03:15.4]} 21... Rxe2 {[%clk 0:02:58.5]} 22. Kf1
{[%clk 0:03:13.8]} 22... Rxc2 {[%clk 0:02:57]} 23. Ke1 {[%clk 0:03:11.8]} 23...
Rc1+ {[%clk 0:02:55.7]} 0-1

[Event "Live Chess"]
[Site "Chess.com"]
[Date "2023.05.21"]
[Round "-"]
[White "chessfiction"]
[Black "Ed_Knox"]
[Result "1-0"]
[WhiteElo "2297"]
[BlackElo "1475"]
[TimeControl "300"]
[EndTime "8:27:42 PDT"]
[Termination "chessfiction won by checkmate"]

1. e4 {[%clk 0:04:56.6]} 1... d5 {[%clk 0:04:56.1]} 2. d4 {[%clk 0:04:56.5]}
2... dxe4 {[%clk 0:04:52.7]} 3. f3 {[%clk 0:04:56.4]} 3... exf3 {[%clk
0:04:51.5]} 4. Nxf3 {[%clk 0:04:56.2]} 4... Nc6 {[%clk 0:04:49.7]} 5. Bc4 {[%clk
0:04:55.2]} 5... Nf6 {[%clk 0:04:47.2]} 6. O-O {[%clk 0:04:53.4]} 6... Bg4
{[%clk 0:04:45.9]} 7. Kh1 {[%clk 0:04:48.1]} 7... Bxf3 {[%clk 0:04:44.7]} 8.
Qxf3 {[%clk 0:04:45.4]} 8... Qxd4 {[%clk 0:04:34.9]} 9. Na3 {[%clk 0:04:44]}
9... e6 {[%clk 0:04:23.8]} 10. Nb5 {[%clk 0:04:41.1]} 10... Bd6 {[%clk
0:04:09.6]} 11. Nxd4 {[%clk 0:04:39.1]} 11... Nxd4 {[%clk 0:04:08]} 12. Qxb7
{[%clk 0:04:37.5]} 12... O-O {[%clk 0:04:04.7]} 13. Rxf6 {[%clk 0:04:31.7]}
13... gxf6 {[%clk 0:04:00.8]} 14. Bh6 {[%clk 0:04:30.8]} 14... Rfb8 {[%clk
0:03:57.1]} 15. Qe4 {[%clk 0:04:29.2]} 15... Kh8 {[%clk 0:03:35.8]} 16. Qxd4
{[%clk 0:04:25]} 16... Rg8 {[%clk 0:03:34.9]} 17. Qxf6+ {[%clk 0:04:23.6]} 17...
Rg7 {[%clk 0:03:31.3]} 18. Qxg7# {[%clk 0:04:23.5]} 1-0

[Event "Live Chess"]
[Site "Chess.com"]
[Date "2023.05.21"]
[Round "-"]
[White "peter-785"]
[Black "viktorskliarov"]
[Result "0-1"]
[WhiteElo "1181"]
[BlackElo "2634"]
[TimeControl "300"]
[EndTime "8:27:46 PDT"]
[Termination "viktorskliarov won by resignation"]

1. e4 {[%clk 0:04:54.2]} 1... c5 {[%clk 0:04:58.6]} 2. Nf3 {[%clk 0:04:52.9]}
2... Nc6 {[%clk 0:04:54.7]} 3. Bc4 {[%clk 0:04:52.1]} 3... g6 {[%clk 0:04:53.2]}
4. d4 {[%clk 0:04:51.6]} 4... cxd4 {[%clk 0:04:51.5]} 5. Nxd4 {[%clk 0:04:50.7]}
5... Bg7 {[%clk 0:04:49.8]} 6. Nxc6 {[%clk 0:04:48.7]} 6... bxc6 {[%clk
0:04:47.1]} 7. c3 {[%clk 0:04:47.7]} 7... Qc7 {[%clk 0:04:42.1]} 8. Be3 {[%clk
0:04:39.8]} 8... Nf6 {[%clk 0:04:41]} 9. Nd2 {[%clk 0:04:26.5]} 9... O-O {[%clk
0:04:39]} 10. h3 {[%clk 0:04:22.8]} 10... d5 {[%clk 0:04:37.5]} 11. exd5 {[%clk
0:04:14.4]} 11... cxd5 {[%clk 0:04:37.4]} 12. Bb3 {[%clk 0:04:10]} 12... Ba6
{[%clk 0:04:35.7]} 13. Qf3 {[%clk 0:04:00.1]} 13... Rfd8 {[%clk 0:04:24.6]} 14.
O-O-O {[%clk 0:03:56.2]} 14... d4 {[%clk 0:04:13]} 15. Bf4 {[%clk 0:03:47.4]}
15... e5 {[%clk 0:03:45]} 16. Bh2 {[%clk 0:03:23]} 16... dxc3 {[%clk 0:03:40.8]}
17. Qxc3 {[%clk 0:02:57.6]} 17... Qxc3+ {[%clk 0:03:36.9]} 18. bxc3 {[%clk
0:02:55.1]} 18... Nd5 {[%clk 0:03:35.4]} 19. Bxd5 {[%clk 0:02:49.3]} 19... Rxd5
{[%clk 0:03:33.1]} 20. Ne4 {[%clk 0:02:37.7]} 20... Rxd1+ {[%clk 0:03:22.4]} 21.
Rxd1 {[%clk 0:02:35.7]} 21... f5 {[%clk 0:03:21.9]} 22. Ng5 {[%clk 0:01:59.1]}
22... Bc4 {[%clk 0:03:15.2]} 23. Rd2 {[%clk 0:01:50.2]} 23... Rc8 {[%clk
0:02:59.6]} 24. Rd6 {[%clk 0:01:26.6]} 24... Bxa2 {[%clk 0:02:37.5]} 25. Ne6
{[%clk 0:01:24.1]} 25... Bxe6 {[%clk 0:02:33.1]} 26. Rxe6 {[%clk 0:01:21.5]}
26... Rxc3+ {[%clk 0:02:30.6]} 27. Kb2 {[%clk 0:01:20.6]} 27... Rc5 {[%clk
0:02:29]} 28. Bg1 {[%clk 0:01:07.9]} 28... e4+ {[%clk 0:02:25]} 29. Kb3 {[%clk
0:01:04]} 29... Re5 {[%clk 0:02:18.4]} 30. Ra6 {[%clk 0:01:01.8]} 30... Re7
{[%clk 0:02:16]} 31. Bh2 {[%clk 0:00:58.5]} 31... Bd4 {[%clk 0:02:12.5]} 32. Bf4
{[%clk 0:00:52.7]} 32... Bxf2 {[%clk 0:02:07.9]} 33. Bg5 {[%clk 0:00:50.4]}
33... Re8 {[%clk 0:01:56.4]} 34. Ra2 {[%clk 0:00:32]} 34... e3 {[%clk
0:01:52.9]} 35. Re2 {[%clk 0:00:28.4]} 35... Kf7 {[%clk 0:01:51.9]} 36. Kc3
{[%clk 0:00:22.8]} 36... Re4 {[%clk 0:01:50.5]} 37. Kd3 {[%clk 0:00:21.4]} 37...
a5 {[%clk 0:01:48.8]} 38. Bxe3 {[%clk 0:00:17.9]} 38... Rxe3+ {[%clk 0:01:47.5]}
39. Rxe3 {[%clk 0:00:16.9]} 39... Bxe3 {[%clk 0:01:47.4]} 40. Kxe3 {[%clk
0:00:16.4]} 40... Ke6 {[%clk 0:01:47.3]} 41. Kd3 {[%clk 0:00:15.8]} 41... Ke5
{[%clk 0:01:46.6]} 42. Kc3 {[%clk 0:00:15.3]} 42... Kf4 {[%clk 0:01:46.2]} 43.
Kb3 {[%clk 0:00:14.8]} 43... Kg3 {[%clk 0:01:46.1]} 44. Ka4 {[%clk 0:00:14.3]}
44... Kxg2 {[%clk 0:01:46]} 45. Kxa5 {[%clk 0:00:14]} 45... Kxh3 {[%clk
0:01:45.9]} 46. Kb4 {[%clk 0:00:13.7]} 46... f4 {[%clk 0:01:45.8]} 47. Kc3
{[%clk 0:00:13.2]} 47... f3 {[%clk 0:01:45.7]} 48. Kd2 {[%clk 0:00:12.1]} 48...
f2 {[%clk 0:01:45.6]} 49. Ke2 {[%clk 0:00:08]} 49... Kg2 {[%clk 0:01:45.5]} 0-1